bitfinex/quotes_SOLUSD_20251206
["timestamp","ask_amount","ask_price","bid_price","bid_amount"]
[1764997504370,44.80410936,133.3,133.28,0.7]
[1764997504670,8.26,133.3,133.28,8.20288637]
[1764997505062,8.26,133.3,133.29,0.67]
[1764997505366,8.26,133.31,133.29,0.67]
[1764997505549,115.22557982,133.33,133.29,0.67]
[1764997505550,103.0,133.33,133.29,0.67]
[1764997505745,8.26,133.32,133.29,0.67]
[1764997506477,8.26,133.32,133.29,8.17199896]
[1764997506662,8.26,133.32,133.3,0.67]
[1764997508682,8.26,133.32,133.3,8.17170464]
[1764997509075,8.26,133.32,133.31,0.69]
[1764997519086,35.05573583,133.36,133.31,0.69]
[1764997519087,4.72504803,133.35,133.31,8.19131272]
[1764997519287,12.22254099,133.38,133.32,14.22499295]
[1764997519589,8.26,133.37,133.32,14.22499295]
[1764997519883,8.26,133.37,133.33,0.69]
[1764997520389,8.26,133.37,133.34,7.49962501]
[1764997520886,8.26,133.37,133.35,0.69]
[1764997523686,12.22254099,133.38,133.35,0.69]
[1764997523687,8.26,133.36,133.35,0.69]
[1764997525595,8.26,133.36,133.35,8.18906261]
[1764997530796,8.24,133.37,133.35,8.18906261]
[1764997530998,8.24,133.37,133.36,0.69]
[1764997533400,12.22206822,133.39,133.36,0.69]
[1764997533591,8.24,133.38,133.36,0.69]
[1764997534501,10.52060624,133.39,133.36,0.69]
[1764997534700,8.24,133.38,133.36,0.69]
[1764997534896,10.52060624,133.39,133.36,0.69]
[1764997535102,8.24,133.38,133.36,0.69]
[1764997535498,3.02358605,133.39,133.36,8.18849021]
[1764997535692,8.24,133.38,133.36,8.18849021]
[1764997535898,8.24,133.38,133.37,0.69]
[1764997544711,10.51987719,133.4,133.37,0.69]
[1764997544892,8.24,133.39,133.37,0.69]
[1764997545098,11.26358605,133.39,133.37,0.69]
[1764997545486,8.24,133.38,133.37,0.69]
[1764997546011,3.02358605,133.39,133.37,0.69]
[1764997546187,8.24,133.38,133.37,0.69]
[1764997549921,8.24,133.38,133.34,21.77192032]
[1764997549922,11.26358605,133.38,133.34,0.65]
[1764997550216,18.76099561,133.38,133.35,0.65]
[1764997570726,3.02358605,133.36,133.33,0.72]
[1764997571030,11.26358605,133.35,133.33,0.72]
[1764997571325,3.02358605,133.35,133.33,0.72]
[1764997571511,3.02358605,133.35,133.31,7.50129919]
[1764997571717,8.24,133.36,133.32,0.72]
[1764997571718,3.02358605,133.34,133.32,0.72]
[1764997573135,10.5232834,133.34,133.32,0.72]
[1764997574036,3.02358605,133.33,133.29,7.50224227]
[1764997574237,3.02358605,133.33,133.3,0.72]
[1764997578738,10.5238498,133.33,133.3,0.72]
[1764997585947,10.5238498,133.33,133.3,1.433675]
[1764997586845,10.5238498,133.33,133.31,0.72]
[1764997588656,7.49980953,133.34,133.31,0.72]
[1764997588824,18.76268049,133.35,133.31,8.22130126]
[1764997589257,18.76268049,133.35,133.32,0.72]
[1764997590360,3.02358605,133.34,133.32,0.72]
[1764997593663,3.02358605,133.33,133.31,0.72]
[1764997593829,3.02358605,133.33,133.3,0.713675]
[1764997594030,3.02358605,133.33,133.32,0.72]
[1764997594733,10.52377355,133.33,133.32,0.72]
[1764997595847,10.52377355,133.33,133.31,0.72]
[1764997596355,12.22922163,133.33,133.31,0.72]
[1764997599459,7.5001875,133.33,133.31,0.72]
[1764997599758,12.22922163,133.33,133.31,0.72]
[1764997602462,20.46922163,133.33,133.31,0.72]
[1764997606962,20.46922163,133.33,133.31,0.71]
[1764997611073,4.72903413,133.32,133.31,0.71]
[1764997611271,4.72903413,133.32,133.3,1.363675]
[1764997611272,12.2297842,133.32,133.3,1.363675]
[1764997613170,12.2297842,133.32,133.3,0.713675]
[1764997613356,12.2297842,133.32,133.31,0.65]
[1764997616764,12.2297842,133.32,133.3,1.363675]
[1764997617866,7.50075007,133.32,133.3,1.363675]
[1764997618073,7.50075007,133.32,133.31,0.65]
[1764997620473,110.50006367,133.34,133.31,0.65]
[1764997620769,115.96903413,133.34,133.31,8.15122199]
[1764997621155,115.96903413,133.34,133.32,0.65]
[1764997637988,123.47025612,133.34,133.32,0.65]
[1764997641901,4.72903413,133.33,133.32,0.65]
[1764997642210,123.47025612,133.34,133.32,0.65]
[1764997646990,118.74122199,133.34,133.32,0.65]
[1764997652397,123.47025612,133.34,133.32,0.65]
[1764997652575,130.96990592,133.34,133.32,0.65]
[1764997658403,129.26682984,133.34,133.32,0.65]
[1764997664010,126.24087179,133.34,133.32,0.65]
[1764997677822,118.74122199,133.34,133.32,0.65]
[1764997678118,111.24,133.34,133.32,0.65]
[1764997681296,121.76559315,133.34,133.32,0.65]
[1764997681825,129.98057206,133.34,133.32,0.65]
[1764997682424,126.95461401,133.34,133.32,0.65]
[1764997684820,164.25461401,133.34,133.32,0.65]
[1764997685023,126.95461401,133.34,133.32,0.65]
[1764997698237,118.7396351,133.34,133.32,0.65]
[1764997698420,19.45628751,133.33,133.32,0.65]
[1764997710339,111.24,133.34,133.32,0.65]
[1764997710739,8.24,133.34,133.32,0.65]
[1764997711256,8.24,133.34,133.32,23.17167711]
[1764997711427,8.24,133.34,133.33,0.71]
[1764997711949,41.28686742,133.35,133.33,0.71]
[1764997712323,30.02090937,133.35,133.33,0.71]
[1764997712522,38.26090937,133.35,133.33,0.71]
[1764997713344,7.49737591,133.38,133.34,3.02595805]
[1764997713534,33.03993995,133.38,133.35,0.71]
[1764997713732,11.26595805,133.37,133.34,0.71]
[1764997713939,3.02595805,133.36,133.34,0.71]
[1764997714136,20.07590297,133.36,133.34,0.71]
[1764997714448,3.02595805,133.36,133.34,0.71]
[1764997714854,22.51660599,133.35,133.34,0.71]
[1764997723675,22.51660599,133.35,133.32,30.01699751]
[1764997723834,30.01570862,133.35,133.32,8.22039152]
[1764997724157,20.46541877,133.35,133.32,0.72]
[1764997724532,22.52336799,133.34,133.32,0.72]
[1764997725362,22.52336799,133.34,133.3,35.45826362]
[1764997725535,27.24968413,133.34,133.31,0.72]
[1764997725735,34.7495162,133.34,133.31,0.72]
[1764997725935,12.22614821,133.34,133.31,0.72]
[1764997726759,22.52505912,133.33,133.31,0.72]
[1764997727251,22.52505912,133.33,133.3,8.21534149]
[1764997727566,22.52505912,133.33,133.31,0.72]
[1764997750173,22.52505912,133.33,133.31,12.94744362]
[1764997750377,121.74702125,133.36,133.32,4.72631614]
[1764997750378,111.24,133.36,133.32,4.72631614]
[1764997750682,111.24,133.36,133.33,4.72631614]
[1764997750854,111.24,133.36,133.33,0.66]
[1764997751477,4.72631614,133.39,133.33,35.40648536]
[1764997751671,8.24,133.38,133.34,4.72631614]
[1764997751873,15.74112748,133.38,133.35,0.66]
[1764997752063,15.74112748,133.38,133.35,19.4010191]
[1764997752266,15.74112748,133.38,133.36,0.66]
[1764997752765,7.49760387,133.38,133.36,19.4010191]
[1764997753278,7.49760387,133.38,133.36,18.7410191]
[1764997753478,7.49760387,133.38,133.37,0.66]
[1764997760983,15.73702995,133.39,133.37,0.66]
[1764997764190,20.46234006,133.41,133.37,0.66]
[1764997767394,8.24,133.4,133.37,5.38631614]
[1764997767770,8.24,133.4,133.38,0.66]
[1764997769097,138.04735401,133.42,133.38,0.66]
[1764997769098,103.0,133.42,133.38,12.88340927]
[1764997769267,118.73513429,133.42,133.39,4.72631614]
[1764997769466,118.73513429,133.42,133.39,5.38631614]
[1764997769666,118.73513429,133.42,133.4,0.66]
[1764997770095,111.24,133.42,133.4,0.66]
[1764997770291,8.24,133.42,133.4,0.66]
[1764997775379,4.72631614,133.41,133.37,0.66]
[1764997775702,12.96631614,133.4,133.37,0.66]
[1764997776368,8.24,133.4,133.37,8.15772211]
[1764997776792,8.24,133.4,133.38,0.66]
[1764997783073,103.0,133.42,133.38,11.18012592]
[1764997783278,8.24,133.4,133.38,11.18012592]
[1764997783495,8.24,133.4,133.39,0.66]
[1764997786188,8.24,133.4,133.39,8.15681385]
[1764997787086,8.24,133.4,133.39,0.66]
[1764997792016,110.49516109,133.42,133.39,0.66]
[1764997792310,111.24,133.42,133.39,11.17977837]
[1764997792693,111.24,133.42,133.4,0.7]
[1764997794408,118.73513877,133.42,133.4,0.7]
[1764997795539,118.73513877,133.42,133.39,0.7]
[1764997797618,121.75813633,133.42,133.39,0.7]
[1764997801123,121.75813633,133.42,133.37,3.72299756]
[1764997801324,121.75813633,133.42,133.37,3.02299756]
[1764997801524,140.49595674,133.42,133.38,0.7]
[1764997803727,3.02299756,133.41,133.38,0.7]
[1764997803911,8.24,133.4,133.38,0.7]
[1764997805907,121.73782041,133.42,133.39,3.02299756]
[1764997805908,8.24,133.42,133.39,3.02299756]
[1764997806111,8.24,133.42,133.4,3.02299756]
[1764997806511,8.24,133.42,133.4,0.7]
[1764997807725,8.24,133.42,133.4,3.72299756]
[1764997809144,8.24,133.42,133.41,0.67]
[1764997809814,15.93473153,133.43,133.41,0.67]
[1764997810830,15.93473153,133.43,133.41,3.69299756]
[1764997811202,15.93473153,133.43,133.41,0.67]
[1764997814607,18.95772909,133.43,133.39,0.67]
[1764997816918,18.95772909,133.43,133.38,11.19001823]
[1764997819222,41.46926625,133.43,133.38,11.19001823]
[1764997820044,10.518508,133.42,133.38,8.16702067]
[1764997820343,8.24,133.41,133.38,8.16702067]
[1764997820642,8.24,133.41,133.39,0.67]
[1764997829853,15.73571149,133.41,133.39,0.67]
[1764997844362,20.45834132,133.41,133.39,0.67]
[1764997846155,15.73571149,133.41,133.39,0.67]
[1764997860577,8.24,133.41,133.39,0.67]
[1764997863980,15.73569382,133.41,133.39,0.67]
[1764997869086,8.24,133.41,133.39,0.67]
[1764997869459,8.24,133.41,133.39,8.16669584]
[1764997869860,8.24,133.41,133.4,0.72]
[1764997870077,8.22,133.41,133.4,0.72]
[1764997882377,15.71572177,133.41,133.38,8.21669584]
[1764997882577,20.4383516,133.41,133.38,0.72]
[1764997882786,18.74699522,133.4,133.38,0.72]
[1764997882995,12.94262983,133.39,133.36,0.72]
[1764997883183,12.94262983,133.39,133.34,4.72262983]
[1764997883383,12.94262983,133.39,133.36,0.72]
[1764997883691,18.74974453,133.38,133.36,0.72]
[1764997883892,8.22,133.37,133.36,0.72]
[1764997884572,26.96974453,133.37,133.36,0.72]
[1764997900914,34.46809529,133.37,133.35,0.71]
[1764997901211,15.71835076,133.37,133.35,0.71]
[1764997901511,22.51998648,133.36,133.35,0.71]
[1764997901894,22.51998648,133.36,133.33,4.72262983]
[1764997902095,22.51998648,133.36,133.35,0.71]
[1764997907002,8.24,133.36,133.35,0.71]
[1764997909421,8.24,133.36,133.33,22.51829611]
[1764997909624,16.308864,133.32,133.3,1.423675]
[1764997909820,27.57365743,133.32,133.3,1.423675]
[1764997909998,24.548864,133.32,133.3,1.423675]
[1764997910524,9.00994492,133.31,133.3,1.423675]
[1764997910726,16.51125764,133.31,133.3,1.423675]
[1764997911506,24.75125764,133.31,133.3,1.423675]
[1764997911907,15.74079014,133.32,133.3,1.423675]
[1764997912108,15.74079014,133.32,133.31,0.71]
[1764997912314,11.26479343,133.32,133.31,0.71]
[1764997914031,43.26479343,133.32,133.31,0.71]
[1764997916961,35.02479343,133.32,133.31,0.71]
[1764997917140,8.24,133.33,133.31,0.71]
[1764997919549,14.85953178,133.34,133.31,11.2359523]
[1764997919752,8.24,133.35,133.31,11.2359523]
[1764997919951,30.76167711,133.35,133.32,0.71]
[1764997920960,8.24,133.35,133.32,0.71]
[1764997921460,23.81320678,133.35,133.32,0.71]
[1764997922361,8.24,133.35,133.32,0.71]
[1764997922563,23.81320678,133.35,133.32,0.71]
[1764997923652,8.24,133.35,133.32,0.71]
[1764997923967,15.57320678,133.34,133.32,0.71]
[1764997928556,15.57320678,133.34,133.32,8.21072085]
[1764997928757,8.24,133.35,133.32,8.21072085]
[1764997928957,23.81320678,133.35,133.33,0.67]
[1764997929158,55.81320678,133.35,133.33,0.67]
[1764997929373,23.81320678,133.35,133.33,0.67]
[1764997936986,15.57320678,133.35,133.33,0.67]
[1764997937171,23.81320678,133.35,133.33,0.67]
[1764997939158,55.81320678,133.35,133.33,0.67]
[1764997939364,23.81320678,133.35,133.33,0.67]
[1764997939762,8.24,133.35,133.33,0.67]
[1764997941279,8.24,133.35,133.33,8.17008465]
[1764997941681,8.24,133.35,133.34,0.67]
[1764997947507,3.02479343,133.39,133.34,11.19421888]
[1764997947693,8.24,133.38,133.35,0.67]
[1764997948584,8.24,133.38,133.35,8.16884417]
[1764997948782,8.24,133.38,133.36,0.67]
[1764997951110,8.24,133.38,133.36,8.16841459]
[1764997951700,8.24,133.38,133.37,0.67]
[1764997954101,40.24,133.38,133.37,0.67]
[1764997954805,8.24,133.38,133.37,0.67]
[1764997957919,8.24,133.38,133.37,8.16793806]
[1764997959190,40.24,133.38,133.37,8.16793806]
[1764997959391,8.24,133.38,133.37,8.16793806]
[1764997959704,11.26479343,133.4,133.37,8.16793806]
[1764997959903,11.26479343,133.4,133.38,0.68]
[1764997961505,3.02479343,133.39,133.36,7.49850029]
[1764997961901,3.02479343,133.39,133.36,0.68]
[1764997963025,3.02479343,133.39,133.36,8.17827186]
[1764997963525,3.02479343,133.39,133.37,0.68]
[1764997964133,32.0,133.38,133.37,0.68]
[1764997964511,3.02479343,133.39,133.37,0.68]
[1764997965826,3.02479343,133.39,133.35,8.17906261]
[1764997965827,3.02479343,133.38,133.35,8.17906261]
[1764997966007,11.26479343,133.37,133.35,8.17906261]
[1764997966205,8.24,133.37,133.35,8.17906261]
[1764997967006,12.96558204,133.37,133.34,7.49947421]
[1764997967206,12.96558204,133.37,133.34,8.17947421]
[1764997967609,12.96558204,133.37,133.34,7.49947421]
[1764997967815,12.96558204,133.37,133.35,0.68]
[1764997969127,4.72558204,133.36,133.33,0.72]
[1764997970908,4.72558204,133.35,133.33,0.72]
[1764997972211,12.22422497,133.36,133.33,0.72]
[1764997972908,43.66558204,133.37,133.33,8.21983821]
[1764997973121,8.24,133.36,133.33,8.21983821]
[1764997973432,8.24,133.36,133.34,0.72]
[1764997974232,8.24,133.36,133.34,8.21936988]
[1764997974819,8.24,133.36,133.35,0.72]
[1764997975306,8.24,133.36,133.34,0.72]
[1764997975942,8.24,133.36,133.33,7.5001875]
[1764997976134,8.24,133.36,133.35,0.72]
[1764997980637,20.46418407,133.36,133.33,0.72]
[1764997981337,4.72558204,133.35,133.33,0.72]
[1764997981529,8.24,133.34,133.33,0.72]
[1764997986727,8.24,133.34,133.33,8.2200843]
[1764997988156,42.92387817,133.37,133.33,8.2200843]
[1764997988360,8.24,133.36,133.34,0.72]
[1764997992084,40.24,133.36,133.34,0.72]
[1764998006774,8.24,133.36,133.34,0.72]
[1764998008698,40.24,133.36,133.34,0.72]
[1764998011979,32.0,133.36,133.34,0.72]
[1764998017203,15.73799578,133.37,133.34,0.72]
[1764998018985,47.73799578,133.37,133.34,0.72]
[1764998019188,15.73799578,133.37,133.34,0.72]
[1764998023918,12.22317617,133.38,133.34,8.21955088]
[1764998024096,40.24,133.37,133.34,8.21955088]
[1764998024297,40.24,133.37,133.35,0.66]
[1764998024596,8.24,133.37,133.35,0.66]
[1764998028400,15.73799212,133.37,133.35,0.66]
[1764998029107,47.73799212,133.37,133.35,0.66]
[1764998029309,15.73799212,133.37,133.35,0.66]
[1764998029919,15.73799212,133.37,133.32,10.52482765]
[1764998030120,18.76230057,133.37,133.32,10.52482765]
[1764998030327,18.76230057,133.37,133.33,0.72]
[1764998033940,15.73799212,133.37,133.33,11.24426596]
[1764998034232,30.8,133.36,133.33,11.24426596]
[1764998034439,30.8,133.36,133.34,0.72]
[1764998044240,38.2985158,133.36,133.34,0.72]
[1764998044448,8.24,133.35,133.34,0.72]
[1764998044946,8.24,133.35,133.33,0.72]
[1764998093596,30.8,133.36,133.33,12.94602129]
[1764998093794,30.8,133.36,133.33,35.4643174]
[1764998094113,30.8,133.36,133.34,0.72]
[1764998100909,38.29858936,133.36,133.34,0.72]
[1764998101420,60.81857584,133.36,133.34,0.72]
[1764998108626,60.81857584,133.36,133.32,8.2205483]
[1764998108831,60.81857584,133.36,133.33,0.69]
[1764998109537,8.24,133.35,133.33,0.69]
[1764998110322,8.24,133.35,133.31,22.51998648]
[1764998110323,20.46540358,133.35,133.31,22.51998648]
[1764998110534,4.72610766,133.34,133.31,0.69]
[1764998110712,8.24,133.33,133.31,0.69]
[1764998111309,12.22817215,133.32,133.31,0.69]
[1764998112223,12.22817215,133.32,133.3,1.403675]
[1764998116517,12.22817215,133.32,133.31,0.69]
[1764998117231,12.22817215,133.32,133.31,5.41610766]
[1764998117620,8.24,133.33,133.31,5.41610766]
[1764998117823,8.24,133.33,133.32,0.69]
[1764998126343,7.49917418,133.35,133.32,0.69]
[1764998126522,8.24,133.34,133.32,8.19071115]
[1764998126947,8.24,133.34,133.33,0.69]
[1764998130326,8.24,133.34,133.32,8.19071115]
[1764998131936,8.24,133.34,133.33,0.69]
[1764998132755,8.24,133.34,133.32,7.50071115]
[1764998132939,8.24,133.34,133.32,8.19071115]
[1764998134557,15.73962857,133.34,133.32,0.69]
[1764998141057,15.73962857,133.34,133.31,0.71]
[1764998141764,28.68093201,133.34,133.31,0.71]
[1764998142259,15.73962857,133.34,133.31,0.71]
[1764998147169,47.83962857,133.34,133.31,0.71]
[1764998147353,15.73962857,133.34,133.31,0.71]
[1764998151052,26.9806058,133.34,133.31,0.71]
[1764998153173,15.73962857,133.34,133.31,0.71]
[1764998153554,8.24,133.33,133.31,0.71]
[1764998153952,7.49962857,133.34,133.31,0.71]
[1764998154151,8.24,133.33,133.31,0.71]
[1764998157086,7.49962857,133.34,133.31,0.71]
[1764998157288,8.24,133.33,133.31,0.71]
[1764998160290,18.74025634,133.35,133.31,8.21123491]
[1764998160464,8.24,133.33,133.31,8.21123491]
[1764998160677,8.24,133.33,133.32,0.66]
[1764998162085,40.24,133.34,133.32,8.1606695]
[1764998162290,40.24,133.34,133.33,0.66]
[1764998166801,8.24,133.34,133.33,0.66]
[1764998167291,25.9705393,133.38,133.33,11.18584486]
[1764998167498,8.24,133.37,133.34,0.66]
[1764998168381,8.24,133.37,133.34,8.15962095]
[1764998168582,8.24,133.37,133.35,0.66]
[1764998169181,3.02578145,133.36,133.33,0.67]
[1764998169688,8.24,133.35,133.33,0.67]
[1764998172604,7.49855043,133.36,133.33,0.67]
[1764998172787,8.24,133.35,133.33,8.17008371]
[1764998173595,8.24,133.35,133.34,0.67]
[1764998173802,8.24,133.35,133.33,0.67]
[1764998175812,15.73908147,133.35,133.33,0.67]
[1764998178311,15.73908147,133.35,133.32,0.67]
[1764998178490,18.76486292,133.35,133.32,0.67]
[1764998178896,26.26597725,133.35,133.32,0.67]
[1764998181596,3.02578145,133.34,133.31,0.67]
[1764998181798,8.24,133.33,133.31,0.67]
[1764998183904,18.76600805,133.33,133.3,0.713675]
[1764998184109,18.76600805,133.33,133.3,1.383675]
[1764998185726,15.7402266,133.33,133.31,0.67]
[1764998187120,8.24,133.32,133.31,0.67]
[1764998187703,8.24,133.32,133.3,0.713675]
[1764998187903,8.24,133.32,133.3,1.383675]
[1764998188524,8.24,133.32,133.3,0.713675]
[1764998188729,8.24,133.32,133.3,1.383675]
[1764998189020,8.24,133.32,133.3,0.713675]
[1764998189225,8.24,133.32,133.3,1.383675]
[1764998189427,18.76672668,133.32,133.3,0.713675]
[1764998189809,29.4957233,133.32,133.3,0.713675]
[1764998191407,10.52709417,133.31,133.3,0.713675]
[1764998192231,7.50131272,133.31,133.3,0.713675]
[1764998195536,10.52709417,133.31,133.3,0.713675]
[1764998195910,18.23030934,133.31,133.3,0.713675]
[1764998199630,18.23030934,133.31,133.27,0.87]
[1764998199631,16.308864,133.28,133.27,0.2]
[1764998199828,27.57464545,133.28,133.27,0.2]
[1764998200140,19.33464545,133.28,133.27,0.2]
[1764998200448,30.57979176,133.28,133.27,0.2]
[1764998200648,38.08279296,133.28,133.27,0.2]
[1764998206237,103.0,133.27,133.25,0.2]
[1764998206437,11.26578145,133.26,133.25,0.2]
[1764998206841,30.58046923,133.26,133.25,0.2]
[1764998207241,22.34046923,133.26,133.25,0.2]
[1764998207449,30.58046923,133.26,133.25,0.2]
[1764998208527,38.08459649,133.26,133.25,0.2]
[1764998212444,39.79492849,133.26,133.25,0.2]
[1764998213261,31.55492849,133.26,133.25,0.2]
[1764998213445,39.79492849,133.26,133.25,0.2]
[1764998214668,16.308864,133.24,133.23,0.2]
[1764998214843,29.28497745,133.24,133.23,0.2]
[1764998215234,32.29080123,133.24,133.23,0.2]
[1764998217067,39.7960549,133.24,133.23,0.2]
[1764998220365,39.7960549,133.24,133.22,0.2]
[1764998220559,4.73611345,133.23,133.22,0.2]
[1764998221060,7.742615,133.23,133.22,0.2]
[1764998221253,15.248432,133.23,133.22,0.2]
[1764998228593,10.51231855,133.23,133.22,0.91]
[1764998228789,23.488432,133.23,133.22,0.2]
[1764998235275,39.797296,133.23,133.22,0.92]
[1764998235686,39.797296,133.23,133.22,0.2]
[1764998245206,39.797296,133.23,133.21,0.2]
[1764998245395,4.73611345,133.22,133.21,0.2]
[1764998246414,15.24922142,133.22,133.21,0.2]
[1764998249333,15.24922142,133.22,133.21,0.92]
[1764998251230,15.24922142,133.22,133.21,0.2]
[1764998252532,15.24922142,133.22,133.21,0.92]
[1764998253414,15.24922142,133.22,133.21,1e-08]
[1764998261136,19.98533487,133.22,133.2,1e-08]
[1764998261339,17.7122269,133.21,133.2,1e-08]
[1764998261847,28.22635046,133.21,133.2,1e-08]
[1764998264625,16.308864,133.19,133.18,0.2]
[1764998264940,29.28497745,133.19,133.18,0.2]
[1764998265132,29.95497745,133.19,133.18,0.2]
[1764998265339,32.96238318,133.19,133.18,0.2]
[1764998265642,40.47045435,133.19,133.18,0.2]
[1764998267544,39.80045435,133.19,133.18,0.2]
[1764998268841,40.47045435,133.19,133.18,0.2]
[1764998269223,39.80045435,133.19,133.18,1e-08]
[1764998269424,40.47045435,133.19,133.18,1e-08]
[1764998270224,40.47045435,133.19,133.17,1e-08]
[1764998270429,4.73611345,133.18,133.17,1e-08]
[1764998270927,7.74397147,133.18,133.17,1e-08]
[1764998271320,15.9226064,133.18,133.17,1e-08]
[1764998271523,15.2526064,133.18,133.17,1e-08]
[1764998272553,13.55146242,133.18,133.17,1e-08]
[1764998279051,16.308864,133.16,133.15,0.1]
[1764998279262,27.58383347,133.16,133.15,0.1]
[1764998279639,30.59169149,133.16,133.15,0.1]
[1764998280235,31.26169149,133.16,133.11,0.2]
[1764998280456,3.03496947,133.15,133.11,0.2]
[1764998280842,13.78026563,133.15,133.13,0.71]
[1764998281156,14.45026563,133.15,133.13,0.71]
[1764998281540,13.78026563,133.15,133.13,0.71]
[1764998282655,16.308864,133.13,133.12,0.71]
[1764998282858,27.58383347,133.13,133.12,0.71]
[1764998283240,30.59214392,133.13,133.12,0.71]
[1764998284365,38.10359888,133.13,133.12,0.71]
[1764998286643,38.10359888,133.13,133.11,0.2]
[1764998286848,3.03496947,133.12,133.11,0.91]
[1764998287047,3.03496947,133.12,133.11,0.2]
[1764998287247,6.04350619,133.12,133.1,0.71]
[1764998287447,11.27496947,133.11,133.1,0.71]
[1764998288966,18.78755304,133.11,133.1,0.71]
[1764998290057,21.79654239,133.11,133.1,0.71]
[1764998290677,40.57800133,133.11,133.09,0.72]
[1764998290875,143.57800133,133.11,133.09,0.72]
[1764998291051,3.03496947,133.1,133.09,0.72]
[1764998291254,6.04395882,133.1,133.09,0.72]
[1764998291558,3.03496947,133.1,133.09,0.72]
[1764998291880,10.54811747,133.1,133.09,0.72]
[1764998292282,13.55710682,133.1,133.09,0.72]
[1764998296354,13.55710682,133.1,133.08,0.2]
[1764998296355,119.308864,133.09,133.08,0.2]
[1764998296560,131.28383347,133.09,133.08,0.2]
[1764998296885,0.7,133.08,133.05,0.72]
[1764998297181,3.03496947,133.06,133.05,0.72]
[1764998298679,10.55037605,133.06,133.05,0.72]
[1764998299680,7.51540658,133.06,133.05,0.72]
[1764998299881,8.26,133.06,133.05,0.72]
[1764998300575,7.51441086,133.08,133.05,3.75496947]
[1764998300784,8.26,133.07,133.05,3.75496947]
[1764998300976,8.26,133.07,133.06,0.72]
[1764998304781,19.50981128,133.07,133.04,0.72]
[1764998304980,3.03496947,133.06,133.04,0.72]
[1764998305178,8.26,133.05,133.04,0.72]
[1764998305684,11.29496947,133.05,133.04,0.72]
[1764998306065,18.81298941,133.05,133.04,0.72]
[1764998306483,26.32896084,133.05,133.04,0.72]
[1764998308874,8.26,133.05,133.04,0.72]
[1764998309096,26.85885829,133.07,133.04,0.72]
[1764998309401,8.26,133.06,133.04,0.72]
[1764998312098,8.26,133.06,133.04,8.23646047]
[1764998312301,8.26,133.06,133.05,0.72]
[1764998317790,8.26,133.06,133.05,8.23593995]
[1764998318018,8.26,133.06,133.05,0.72]
[1764998318509,113.55142994,133.09,133.05,8.23597143]
[1764998318812,8.26,133.08,133.05,11.2709409]
[1764998318995,8.26,133.08,133.06,0.66]
[1764998323021,18.78474471,133.09,133.06,8.17533481]
[1764998323022,11.2709409,133.09,133.06,8.17533481]
[1764998323219,8.26,133.08,133.06,8.17533481]
[1764998323419,8.26,133.08,133.07,0.66]
[1764998323821,18.78369371,133.11,133.07,0.66]
[1764998324121,8.26,133.09,133.07,0.66]
[1764998324536,11.29496947,133.09,133.07,0.66]
[1764998324702,11.98496947,133.09,133.07,0.66]
[1764998324903,18.81081648,133.09,133.07,0.66]
[1764998325127,26.32488571,133.09,133.07,0.66]
[1764998326840,7.51336094,133.1,133.07,0.66]
[1764998327008,8.26,133.08,133.07,0.66]
[1764998327435,7.51584701,133.11,133.07,16.98461742]
[1764998327627,15.77254078,133.12,133.07,20.01958689]
[1764998327836,15.77254078,133.12,133.08,3.69496947]